[Event "Titled Tuesday Blitz March 14 Late 2023"]
[White "Burke, Paul"]
[Black "Kielinkei"]
[WhiteFideId "2605767"]
[WhiteElo "1854"]
[BlackElo "2431"]
[Result "0-1"]
[Round "04"]
[TimeControl "180+2"]
[Date "2023.03.14"]
[WhiteClock "0:00:28"]
[BlackClock "0:00:22"]

1. e4 {[%clk 0:03:00]}  c5 {[%clk 0:02:58]} 2. Nf3 {[%clk 0:03:00]}  e6 {[%clk 0:02:56]} 3. d4 {[%clk 0:03:00]}  cxd4 {[%clk 0:02:57]} 4. c3 {[%clk 0:02:59]}  Nf6 {[%clk 0:02:55]} 5. e5 {[%clk 0:02:58]}  Nd5 {[%clk 0:02:56]} 6. cxd4 {[%clk 0:02:55]}  b6 {[%clk 0:02:52]} 7. Bd3 {[%clk 0:02:52]}  Bb7 {[%clk 0:02:51]} 8. O-O {[%clk 0:02:52]}  Be7 {[%clk 0:02:51]} 9. Nc3 {[%clk 0:02:51]}  Nxc3 {[%clk 0:02:49]} 10. bxc3 {[%clk 0:02:51]}  O-O {[%clk 0:02:48]} 11. Qc2 {[%clk 0:02:49]}  h6 {[%clk 0:02:45]} 12. Bf4 {[%clk 0:02:39]}  d6 {[%clk 0:02:39]} 13. Rfe1 {[%clk 0:02:34]}  dxe5 {[%clk 0:02:34]} 14. Nxe5 {[%clk 0:02:33]}  Nd7 {[%clk 0:02:31]} 15. Rad1 {[%clk 0:02:14]}  Nxe5 {[%clk 0:02:27]} 16. dxe5 {[%clk 0:02:14]}  Qc7 {[%clk 0:02:20]} 17. Qd2 {[%clk 0:02:10]}  Rad8 {[%clk 0:01:26]} 18. Bxh6 {[%clk 0:02:02]}  Ba6 {[%clk 0:01:11]} 19. Qe3 {[%clk 0:01:50]}  Rxd3 {[%clk 0:01:02]} 20. Rxd3 {[%clk 0:01:46]}  Bxd3 {[%clk 0:01:03]} 21. Bxg7 {[%clk 0:01:39]}  Kxg7 {[%clk 0:01:01]} 22. Qxd3 {[%clk 0:01:34]}  Rg8 {[%clk 0:00:54]} 23. Re3 {[%clk 0:01:29]}  Rd8 {[%clk 0:00:34]} 24. Qe2 {[%clk 0:01:12]}  Qd7 {[%clk 0:00:31]} 25. Qg4+ {[%clk 0:01:10]}  Kf8 {[%clk 0:00:30]} 26. Re1 {[%clk 0:00:36]}  Qd2 {[%clk 0:00:30]} 27. Rf1 {[%clk 0:00:34]}  Qg5 {[%clk 0:00:31]} 28. Qf3 {[%clk 0:00:31]}  Rd5 {[%clk 0:00:23]} 29. g3 {[%clk 0:00:28]}  Qxe5 {[%clk 0:00:22]} 0-1


[Site "https://www.chess.com"]

[Event "Titled Tuesday Blitz March 14 Late 2023"]
[White "Guo, Josh"]
[Black "ritanovikova"]
[WhiteFideId "2682427"]
[WhiteElo "2324"]
[BlackElo "2160"]
[Result "0-1"]
[Round "04"]
[TimeControl "180+2"]
[Date "2023.03.14"]
[WhiteClock "0:01:27"]
[BlackClock "0:02:34"]

1. e4 {[%clk 0:03:00]}  d6 {[%clk 0:02:59]} 2. d4 {[%clk 0:02:59]}  g6 {[%clk 0:03:00]} 3. Nc3 {[%clk 0:02:58]}  Bg7 {[%clk 0:03:01]} 4. Nf3 {[%clk 0:02:58]}  Bg4 {[%clk 0:03:01]} 5. Be2 {[%clk 0:02:57]}  Nc6 {[%clk 0:02:59]} 6. Be3 {[%clk 0:02:56]}  e5 {[%clk 0:02:59]} 7. d5 {[%clk 0:02:45]}  Bxf3 {[%clk 0:02:58]} 8. gxf3 {[%clk 0:02:38]}  Nd4 {[%clk 0:02:55]} 9. Bxd4 {[%clk 0:01:53]}  exd4 {[%clk 0:02:56]} 10. Nb5 {[%clk 0:01:54]}  d3 {[%clk 0:02:48]} 11. Qxd3 {[%clk 0:01:35]}  Bxb2 {[%clk 0:02:43]} 12. Nd4 {[%clk 0:01:27]}  Bxa1 {[%clk 0:02:34]} 0-1


[Site "https://www.chess.com"]

[Event "Titled Tuesday Blitz March 14 Late 2023"]
[White "lisjakzlatko1"]
[Black "Todev, Simeon"]
[BlackFideId "2925133"]
[WhiteElo "2158"]
[BlackElo "1938"]
[Result "0-1"]
[Round "04"]
[TimeControl "180+2"]
[Date "2023.03.14"]
[WhiteClock "0:00:11"]
[BlackClock "0:00:33"]

1. e4 {[%clk 0:03:00]}  g6 {[%clk 0:02:47]} 2. d4 {[%clk 0:02:57]}  Bg7 {[%clk 0:02:48]} 3. Nc3 {[%clk 0:02:56]}  d6 {[%clk 0:02:47]} 4. g3 {[%clk 0:02:51]}  e5 {[%clk 0:02:27]} 5. dxe5 {[%clk 0:02:34]}  dxe5 {[%clk 0:02:27]} 6. Qxd8+ {[%clk 0:02:33]}  Kxd8 {[%clk 0:02:27]} 7. Bg5+ {[%clk 0:02:29]}  f6 {[%clk 0:02:16]} 8. O-O-O+ {[%clk 0:02:29]}  Bd7 {[%clk 0:02:03]} 9. Be3 {[%clk 0:02:24]}  Ne7 {[%clk 0:01:37]} 10. Bc4 {[%clk 0:02:13]}  c6 {[%clk 0:01:36]} 11. a4 {[%clk 0:02:00]}  b6 {[%clk 0:01:28]} 12. f4 {[%clk 0:01:58]}  Kc7 {[%clk 0:01:12]} 13. fxe5 {[%clk 0:01:44]}  fxe5 {[%clk 0:01:13]} 14. Bg5 {[%clk 0:01:42]}  Re8 {[%clk 0:01:11]} 15. h3 {[%clk 0:01:32]}  a6 {[%clk 0:01:05]} 16. Nf3 {[%clk 0:01:23]}  b5 {[%clk 0:01:05]} 17. Bb3 {[%clk 0:01:17]}  Ng8 {[%clk 0:00:57]} 18. Rhf1 {[%clk 0:01:10]}  h6 {[%clk 0:00:56]} 19. g4 {[%clk 0:01:07]}  hxg5 {[%clk 0:00:54]} 20. Nxg5 {[%clk 0:00:43]}  Nf6 {[%clk 0:00:51]} 21. Nf7 {[%clk 0:00:30]}  Re7 {[%clk 0:00:46]} 22. Nd6 {[%clk 0:00:27]}  Be6 {[%clk 0:00:44]} 23. Bxe6 {[%clk 0:00:19]}  Rxe6 {[%clk 0:00:45]} 24. g5 {[%clk 0:00:19]}  Rxd6 {[%clk 0:00:33]} 25. gxf6 {[%clk 0:00:14]}  Rxf6 {[%clk 0:00:33]} 26. Rxf6 {[%clk 0:00:11]}  Bxf6 {[%clk 0:00:33]} 0-1


[Site "https://www.chess.com"]

[Event "Titled Tuesday Blitz March 14 Late 2023"]
[White "Harris, Ian"]
[Black "Souza, Gustavo Horokoski De"]
[WhiteFideId "2020092"]
[BlackFideId "2146584"]
[WhiteElo "2304"]
[BlackElo "1859"]
[Result "1-0"]
[Round "04"]
[TimeControl "180+2"]
[Date "2023.03.14"]
[WhiteClock "0:00:19"]
[BlackClock "0:00:01"]

1. d4 {[%clk 0:03:00]}  Nf6 {[%clk 0:02:57]} 2. Bg5 {[%clk 0:03:00]}  g6 {[%clk 0:02:55]} 3. Nc3 {[%clk 0:02:57]}  Bg7 {[%clk 0:02:55]} 4. Qd2 {[%clk 0:02:58]}  d6 {[%clk 0:02:53]} 5. O-O-O {[%clk 0:02:56]}  c6 {[%clk 0:02:51]} 6. Bh6 {[%clk 0:02:56]}  Bxh6 {[%clk 0:02:51]} 7. Qxh6 {[%clk 0:02:56]}  Nbd7 {[%clk 0:02:51]} 8. e4 {[%clk 0:02:54]}  b5 {[%clk 0:02:50]} 9. e5 {[%clk 0:02:49]}  Nd5 {[%clk 0:02:28]} 10. Nxd5 {[%clk 0:01:09]}  cxd5 {[%clk 0:02:29]} 11. e6 {[%clk 0:01:00]}  fxe6 {[%clk 0:02:12]} 12. Qg7 {[%clk 0:01:00]}  Rf8 {[%clk 0:02:06]} 13. Qxh7 {[%clk 0:00:59]}  Qa5 {[%clk 0:01:59]} 14. Kb1 {[%clk 0:00:56]}  Rxf2 {[%clk 0:01:42]} 15. Qxg6+ {[%clk 0:00:53]}  Kd8 {[%clk 0:01:40]} 16. Nf3 {[%clk 0:00:50]}  Rb8 {[%clk 0:01:11]} 17. Qg3 {[%clk 0:00:45]}  Rxf3 {[%clk 0:01:01]} 18. gxf3 {[%clk 0:00:40]}  b4 {[%clk 0:01:02]} 19. f4 {[%clk 0:00:40]}  Ba6 {[%clk 0:01:00]} 20. Bxa6 {[%clk 0:00:39]}  Qxa6 {[%clk 0:01:01]} 21. h4 {[%clk 0:00:37]}  Rb5 {[%clk 0:01:00]} 22. h5 {[%clk 0:00:32]}  Ra5 {[%clk 0:01:00]} 23. Qb3 {[%clk 0:00:29]}  Nb6 {[%clk 0:00:56]} 24. h6 {[%clk 0:00:28]}  Nc4 {[%clk 0:00:34]} 25. h7 {[%clk 0:00:27]}  Kd7 {[%clk 0:00:16]} 26. h8=Q {[%clk 0:00:27]}  Rb5 {[%clk 0:00:06]} 27. Rh7 {[%clk 0:00:24]}  Rb6 {[%clk 0:00:04]} 28. Qh3 {[%clk 0:00:21]}  Qa4 {[%clk 0:00:01]} 29. Rxe7+ {[%clk 0:00:19]} 1-0


[Site "https://www.chess.com"]

[Event "Titled Tuesday Blitz March 14 Late 2023"]
[White "Manu_ChessExcelsior"]
[Black "Tsyhanchuk, Stanislav"]
[BlackFideId "13505130"]
[WhiteElo "2003"]
[BlackElo "2173"]
[Result "1-0"]
[Round "04"]
[TimeControl "180+2"]
[Date "2023.03.14"]
[WhiteClock "0:00:18"]
[BlackClock "0:00:01"]

1. e4 {[%clk 0:03:00]}  c5 {[%clk 0:03:00]} 2. Nf3 {[%clk 0:03:00]}  d6 {[%clk 0:03:00]} 3. Bb5+ {[%clk 0:03:00]}  Nd7 {[%clk 0:02:59]} 4. O-O {[%clk 0:02:49]}  a6 {[%clk 0:02:59]} 5. Bd3 {[%clk 0:02:42]}  b5 {[%clk 0:02:58]} 6. c3 {[%clk 0:02:41]}  g6 {[%clk 0:02:48]} 7. Bc2 {[%clk 0:02:39]}  Bg7 {[%clk 0:02:48]} 8. d4 {[%clk 0:02:39]}  Bb7 {[%clk 0:02:42]} 9. Re1 {[%clk 0:02:39]}  Nh6 {[%clk 0:02:30]} 10. Nbd2 {[%clk 0:02:39]}  O-O {[%clk 0:02:30]} 11. Nf1 {[%clk 0:02:39]}  a5 {[%clk 0:02:16]} 12. Ng3 {[%clk 0:02:32]}  b4 {[%clk 0:02:16]} 13. e5 {[%clk 0:02:04]}  dxe5 {[%clk 0:02:08]} 14. dxe5 {[%clk 0:02:02]}  Bxf3 {[%clk 0:02:01]} 15. Qxf3 {[%clk 0:02:01]}  Nxe5 {[%clk 0:01:45]} 16. Rxe5 {[%clk 0:01:59]}  Bxe5 {[%clk 0:01:46]} 17. Bxh6 {[%clk 0:01:58]}  Re8 {[%clk 0:01:47]} 18. Rd1 {[%clk 0:01:56]}  Qc7 {[%clk 0:01:43]} 19. Bb3 {[%clk 0:01:37]}  c4 {[%clk 0:01:31]} 20. Ba4 {[%clk 0:01:29]}  Red8 {[%clk 0:01:31]} 21. Nf1 {[%clk 0:01:10]}  Rxd1 {[%clk 0:01:11]} 22. Bxd1 {[%clk 0:01:09]}  Rd8 {[%clk 0:01:10]} 23. Be2 {[%clk 0:01:08]}  a4 {[%clk 0:01:00]} 24. cxb4 {[%clk 0:01:04]}  Bxb2 {[%clk 0:00:59]} 25. Bd1 {[%clk 0:00:52]}  a3 {[%clk 0:00:53]} 26. Bc2 {[%clk 0:00:49]}  Qd6 {[%clk 0:00:37]} 27. h4 {[%clk 0:00:46]}  Qxb4 {[%clk 0:00:35]} 28. h5 {[%clk 0:00:44]}  Qc3 {[%clk 0:00:29]} 29. hxg6 {[%clk 0:00:39]}  hxg6 {[%clk 0:00:26]} 30. Qe4 {[%clk 0:00:33]}  Qd4 {[%clk 0:00:19]} 31. Qb7 {[%clk 0:00:27]}  Qd7 {[%clk 0:00:17]} 32. Qb4 {[%clk 0:00:25]}  Rc8 {[%clk 0:00:16]} 33. Ne3 {[%clk 0:00:24]}  Qc7 {[%clk 0:00:10]} 34. g3 {[%clk 0:00:21]}  Bc1 {[%clk 0:00:10]} 35. Bf4 {[%clk 0:00:20]}  Qc5 {[%clk 0:00:09]} 36. Qb7 {[%clk 0:00:19]}  c3 {[%clk 0:00:05]} 37. Bb3 {[%clk 0:00:19]}  Kg7 {[%clk 0:00:03]} 38. Qe4 {[%clk 0:00:17]}  Rd8 {[%clk 0:00:02]} 39. Be5+ {[%clk 0:00:17]}  Kg8 {[%clk 0:00:02]} 40. Qxg6+ {[%clk 0:00:18]}  Kf8 {[%clk 0:00:01]} 41. Qxf7# {[%clk 0:00:18]} 1-0


[Site "https://www.chess.com"]

[Event "Titled Tuesday Blitz March 14 Late 2023"]
[White "Almeida Quintana, Omar"]
[Black "Xu, Yi"]
[WhiteFideId "3503313"]
[BlackFideId "8605564"]
[WhiteElo "2530"]
[BlackElo "2471"]
[Result "1/2-1/2"]
[Round "05"]
[TimeControl "180+1"]
[Date "2023.03.14"]
[WhiteClock "0:01:28"]
[BlackClock "0:01:14"]

1. d4 {[%clk 0:03:00]}  Nf6 {[%clk 0:02:58]} 2. Nf3 {[%clk 0:03:00]}  d5 {[%clk 0:02:58]} 3. c4 {[%clk 0:03:00]}  e6 {[%clk 0:02:58]} 4. Nc3 {[%clk 0:02:58]}  Bb4 {[%clk 0:02:58]} 5. Qa4+ {[%clk 0:02:55]}  Nc6 {[%clk 0:02:57]} 6. cxd5 {[%clk 0:02:52]}  exd5 {[%clk 0:02:57]} 7. Bg5 {[%clk 0:02:53]}  h6 {[%clk 0:02:57]} 8. Bxf6 {[%clk 0:02:53]}  Qxf6 {[%clk 0:02:58]} 9. e3 {[%clk 0:02:53]}  O-O {[%clk 0:02:57]} 10. Be2 {[%clk 0:02:54]}  Be6 {[%clk 0:02:57]} 11. O-O {[%clk 0:02:53]}  a6 {[%clk 0:02:47]} 12. Rac1 {[%clk 0:02:42]}  Bd6 {[%clk 0:02:41]} 13. Qd1 {[%clk 0:02:37]}  Rfd8 {[%clk 0:02:34]} 14. Nd2 {[%clk 0:02:36]}  Ne7 {[%clk 0:02:33]} 15. g3 {[%clk 0:02:32]}  Bh3 {[%clk 0:02:12]} 16. Re1 {[%clk 0:02:28]}  c6 {[%clk 0:02:12]} 17. Bg4 {[%clk 0:02:24]}  Bxg4 {[%clk 0:02:10]} 18. Qxg4 {[%clk 0:02:25]}  Ng6 {[%clk 0:02:07]} 19. Na4 {[%clk 0:02:18]}  Rac8 {[%clk 0:02:00]} 20. Nc5 {[%clk 0:02:15]}  Rc7 {[%clk 0:02:00]} 21. b4 {[%clk 0:02:12]}  Re7 {[%clk 0:01:56]} 22. a4 {[%clk 0:02:05]}  Rde8 {[%clk 0:01:53]} 23. Nd3 {[%clk 0:01:56]}  Re6 {[%clk 0:01:21]} 24. Nc5 {[%clk 0:01:44]}  R6e7 {[%clk 0:01:20]} 25. Nd3 {[%clk 0:01:29]}  Re6 {[%clk 0:01:19]} 26. Nc5 {[%clk 0:01:28]}  R6e7 {[%clk 0:01:14]} 1/2-1/2


[Site "https://www.chess.com"]

[Event "Titled Tuesday Blitz March 14 Late 2023"]
[White "Arabidze, Meri"]
[Black "Ansh M Shah"]
[WhiteFideId "13604040"]
[BlackFideId "25033379"]
[WhiteElo "2405"]
[BlackElo "2084"]
[Result "1-0"]
[Round "05"]
[TimeControl "180+1"]
[Date "2023.03.14"]
[WhiteClock "0:01:02"]
[BlackClock "0:00:08"]

1. d4 {[%clk 0:02:56]}  Nf6 {[%clk 0:02:59]} 2. Nf3 {[%clk 0:02:56]}  e6 {[%clk 0:02:59]} 3. c4 {[%clk 0:02:56]}  d5 {[%clk 0:03:00]} 4. Nc3 {[%clk 0:02:56]}  Be7 {[%clk 0:03:01]} 5. Bg5 {[%clk 0:02:55]}  O-O {[%clk 0:03:01]} 6. e3 {[%clk 0:02:55]}  c6 {[%clk 0:03:02]} 7. Qc2 {[%clk 0:02:55]}  Nbd7 {[%clk 0:03:02]} 8. Rd1 {[%clk 0:02:55]}  h6 {[%clk 0:03:03]} 9. Bh4 {[%clk 0:02:55]}  Re8 {[%clk 0:03:03]} 10. a3 {[%clk 0:02:53]}  a5 {[%clk 0:03:01]} 11. Bd3 {[%clk 0:02:51]}  dxc4 {[%clk 0:03:01]} 12. Bxc4 {[%clk 0:02:52]}  b5 {[%clk 0:03:01]} 13. Ba2 {[%clk 0:02:46]}  Bb7 {[%clk 0:03:02]} 14. O-O {[%clk 0:02:45]}  b4 {[%clk 0:02:57]} 15. Na4 {[%clk 0:02:44]}  Ba6 {[%clk 0:02:46]} 16. Rfe1 {[%clk 0:02:34]}  Bb5 {[%clk 0:02:46]} 17. Nc5 {[%clk 0:02:29]}  Nxc5 {[%clk 0:02:44]} 18. dxc5 {[%clk 0:02:29]}  Qc7 {[%clk 0:02:43]} 19. Bb1 {[%clk 0:02:25]}  g6 {[%clk 0:02:40]} 20. Bg3 {[%clk 0:02:19]}  Qa7 {[%clk 0:02:39]} 21. Bd6 {[%clk 0:02:19]}  Red8 {[%clk 0:02:35]} 22. e4 {[%clk 0:02:16]}  Rd7 {[%clk 0:02:24]} 23. e5 {[%clk 0:02:16]}  Nd5 {[%clk 0:02:24]} 24. h4 {[%clk 0:02:15]}  h5 {[%clk 0:02:21]} 25. a4 {[%clk 0:02:06]}  Ba6 {[%clk 0:02:20]} 26. Nd4 {[%clk 0:02:06]}  Qb7 {[%clk 0:02:10]} 27. Nxe6 {[%clk 0:01:54]}  Bxd6 {[%clk 0:01:55]} 28. cxd6 {[%clk 0:01:54]}  fxe6 {[%clk 0:01:32]} 29. Qxg6+ {[%clk 0:01:53]}  Rg7 {[%clk 0:01:33]} 30. Qxe6+ {[%clk 0:01:53]}  Qf7 {[%clk 0:01:33]} 31. Qxf7+ {[%clk 0:01:50]}  Kxf7 {[%clk 0:01:25]} 32. e6+ {[%clk 0:01:44]}  Kf6 {[%clk 0:01:25]} 33. e7 {[%clk 0:01:39]}  Rag8 {[%clk 0:01:09]} 34. g3 {[%clk 0:01:32]}  Bc8 {[%clk 0:00:19]} 35. e8=Q {[%clk 0:01:28]}  Rxe8 {[%clk 0:00:20]} 36. Rxe8 {[%clk 0:01:28]}  Bd7 {[%clk 0:00:21]} 37. Ree1 {[%clk 0:01:22]}  Rg4 {[%clk 0:00:14]} 38. Ba2 {[%clk 0:01:21]}  Nf4 {[%clk 0:00:08]} 39. Kh2 {[%clk 0:01:17]}  Ng6 {[%clk 0:00:07]} 40. Re3 {[%clk 0:01:10]}  Ne5 {[%clk 0:00:06]} 41. f4 {[%clk 0:01:09]}  Ng6 {[%clk 0:00:05]} 42. Bb1 {[%clk 0:01:05]}  c5 {[%clk 0:00:04]} 43. Bxg6 {[%clk 0:01:04]}  Rxg6 {[%clk 0:00:04]} 44. Re7 {[%clk 0:01:04]}  Rg7 {[%clk 0:00:04]} 45. Rde1 {[%clk 0:01:01]}  c4 {[%clk 0:00:04]} 46. Rxg7 {[%clk 0:01:01]}  Kxg7 {[%clk 0:00:05]} 47. Re7+ {[%clk 0:01:01]}  Kf6 {[%clk 0:00:06]} 48. Rxd7 {[%clk 0:01:02]}  Ke6 {[%clk 0:00:06]} 49. Rc7 {[%clk 0:01:02]}  Kxd6 {[%clk 0:00:07]} 50. Rxc4 {[%clk 0:01:02]}  Kd5 {[%clk 0:00:08]} 51. b3 {[%clk 0:01:02]} 1-0


[Site "https://www.chess.com"]

[Event "Titled Tuesday Blitz March 14 Late 2023"]
[White "Ashraf, Artin"]
[Black "Janaszak, Dawid"]
[WhiteFideId "22514805"]
[BlackFideId "1119206"]
[WhiteElo "2188"]
[BlackElo "2220"]
[Result "1-0"]
[Round "05"]
[TimeControl "180+1"]
[Date "2023.03.14"]
[WhiteClock "0:00:06"]
[BlackClock "0:00:13"]

1. d4 {[%clk 0:02:56]}  d5 {[%clk 0:02:58]} 2. Nf3 {[%clk 0:02:53]}  c5 {[%clk 0:02:58]} 3. c4 {[%clk 0:02:47]}  e6 {[%clk 0:02:53]} 4. cxd5 {[%clk 0:02:45]}  exd5 {[%clk 0:02:52]} 5. g3 {[%clk 0:02:46]}  Nc6 {[%clk 0:02:51]} 6. Bg2 {[%clk 0:02:46]}  Nf6 {[%clk 0:02:52]} 7. O-O {[%clk 0:02:46]}  cxd4 {[%clk 0:02:48]} 8. Nxd4 {[%clk 0:02:46]}  Bc5 {[%clk 0:02:49]} 9. Nxc6 {[%clk 0:02:41]}  bxc6 {[%clk 0:02:49]} 10. Qc2 {[%clk 0:02:42]}  Qb6 {[%clk 0:02:35]} 11. Nc3 {[%clk 0:02:26]}  Be7 {[%clk 0:02:20]} 12. Be3 {[%clk 0:02:16]}  Qa6 {[%clk 0:02:20]} 13. Na4 {[%clk 0:02:10]}  O-O {[%clk 0:02:14]} 14. Rac1 {[%clk 0:02:06]}  Bg4 {[%clk 0:02:06]} 15. Rfe1 {[%clk 0:02:00]}  Rac8 {[%clk 0:01:59]} 16. Bc5 {[%clk 0:01:56]}  Qb7 {[%clk 0:01:48]} 17. b3 {[%clk 0:01:53]}  Rfe8 {[%clk 0:01:45]} 18. e3 {[%clk 0:01:52]}  Qd7 {[%clk 0:01:40]} 19. Bxe7 {[%clk 0:01:43]}  Qxe7 {[%clk 0:01:34]} 20. Qc5 {[%clk 0:01:42]}  Qd7 {[%clk 0:01:29]} 21. Qd4 {[%clk 0:01:40]}  Qf5 {[%clk 0:01:14]} 22. f3 {[%clk 0:01:34]}  Bh3 {[%clk 0:00:27]} 23. g4 {[%clk 0:01:33]}  Bxg4 {[%clk 0:00:28]} 24. fxg4 {[%clk 0:01:33]}  Nxg4 {[%clk 0:00:28]} 25. Qf4 {[%clk 0:01:32]}  Qh5 {[%clk 0:00:28]} 26. Bf3 {[%clk 0:01:17]}  Re6 {[%clk 0:00:28]} 27. Rc2 {[%clk 0:00:54]}  Rg6 {[%clk 0:00:27]} 28. Rg2 {[%clk 0:00:53]}  Qh4 {[%clk 0:00:26]} 29. Rf1 {[%clk 0:00:49]}  h5 {[%clk 0:00:24]} 30. Bxg4 {[%clk 0:00:23]}  hxg4 {[%clk 0:00:23]} 31. Qxf7+ {[%clk 0:00:22]}  Kh7 {[%clk 0:00:24]} 32. Qf5 {[%clk 0:00:16]}  Kh6 {[%clk 0:00:21]} 33. Nc5 {[%clk 0:00:13]}  Re8 {[%clk 0:00:20]} 34. Nd3 {[%clk 0:00:10]}  g3 {[%clk 0:00:17]} 35. Qf4+ {[%clk 0:00:06]}  Qxf4 {[%clk 0:00:17]} 36. Nxf4 {[%clk 0:00:07]}  gxh2+ {[%clk 0:00:17]} 37. Kxh2 {[%clk 0:00:07]}  Rf6 {[%clk 0:00:17]} 38. Rf3 {[%clk 0:00:06]}  Kh7 {[%clk 0:00:14]} 39. Rh3+ {[%clk 0:00:05]}  Kg8 {[%clk 0:00:15]} 40. Nh5 {[%clk 0:00:06]}  Rf7 {[%clk 0:00:15]} 41. Rhg3 {[%clk 0:00:06]}  Ree7 {[%clk 0:00:16]} 42. Nf4 {[%clk 0:00:07]}  Rf6 {[%clk 0:00:15]} 43. Kg1 {[%clk 0:00:06]}  Kf7 {[%clk 0:00:15]} 44. Rxg7+ {[%clk 0:00:06]}  Ke8 {[%clk 0:00:15]} 45. Rxe7+ {[%clk 0:00:07]}  Kxe7 {[%clk 0:00:16]} 46. Rg7+ {[%clk 0:00:07]}  Kd6 {[%clk 0:00:16]} 47. Rxa7 {[%clk 0:00:08]}  d4 {[%clk 0:00:17]} 48. Ra4 {[%clk 0:00:08]}  dxe3 {[%clk 0:00:17]} 49. Kg2 {[%clk 0:00:08]}  Ke5 {[%clk 0:00:14]} 50. Kf3 {[%clk 0:00:08]}  e2 {[%clk 0:00:12]} 51. Re4+ {[%clk 0:00:06]}  Kf5 {[%clk 0:00:12]} 52. Nxe2 {[%clk 0:00:06]}  Kg5+ {[%clk 0:00:13]} 53. Ke3 {[%clk 0:00:06]}  c5 {[%clk 0:00:13]} 54. Rc4 {[%clk 0:00:06]}  Ra6 {[%clk 0:00:13]} 55. a4 {[%clk 0:00:06]} 1-0


[Site "https://www.chess.com"]

[Event "Titled Tuesday Blitz March 14 Late 2023"]
[White "Barash, Anton"]
[Black "Burke, Paul"]
[WhiteFideId "30935229"]
[BlackFideId "2605767"]
[WhiteElo "2337"]
[BlackElo "1853"]
[Result "1-0"]
[Round "05"]
[TimeControl "180+1"]
[Date "2023.03.14"]
[WhiteClock "0:00:33"]
[BlackClock "0:00:03"]

1. e4 {[%clk 0:03:00]}  e5 {[%clk 0:02:59]} 2. Nc3 {[%clk 0:02:59]}  Nc6 {[%clk 0:02:59]} 3. f4 {[%clk 0:02:54]}  Bc5 {[%clk 0:02:57]} 4. fxe5 {[%clk 0:02:53]}  Bxg1 {[%clk 0:02:52]} 5. Rxg1 {[%clk 0:02:53]}  Nge7 {[%clk 0:02:52]} 6. d4 {[%clk 0:02:49]}  d6 {[%clk 0:02:51]} 7. exd6 {[%clk 0:02:30]}  Qxd6 {[%clk 0:02:40]} 8. Be3 {[%clk 0:02:30]}  O-O {[%clk 0:02:29]} 9. Qd2 {[%clk 0:02:26]}  a6 {[%clk 0:01:58]} 10. O-O-O {[%clk 0:02:21]}  b5 {[%clk 0:01:50]} 11. Bf4 {[%clk 0:02:06]}  Qb4 {[%clk 0:01:39]} 12. Bxc7 {[%clk 0:01:58]}  Ng6 {[%clk 0:00:56]} 13. d5 {[%clk 0:01:52]}  Nce5 {[%clk 0:00:51]} 14. Qd4 {[%clk 0:01:27]}  Nc4 {[%clk 0:00:33]} 15. Bxc4 {[%clk 0:01:23]}  bxc4 {[%clk 0:00:33]} 16. a3 {[%clk 0:01:17]}  Qb7 {[%clk 0:00:27]} 17. d6 {[%clk 0:01:04]}  Bg4 {[%clk 0:00:27]} 18. Rd2 {[%clk 0:01:03]}  Rac8 {[%clk 0:00:20]} 19. e5 {[%clk 0:00:59]}  Be6 {[%clk 0:00:18]} 20. Nd5 {[%clk 0:00:53]}  Qb5 {[%clk 0:00:11]} 21. Nb6 {[%clk 0:00:44]}  c3 {[%clk 0:00:07]} 22. Qxc3 {[%clk 0:00:36]}  Nxe5 {[%clk 0:00:03]} 23. Nxc8 {[%clk 0:00:33]} 1-0


[Site "https://www.chess.com"]